fUST/lending_fUST_20250221
["ID","MTS","AMOUNT","RATE_DAILY","PERIOD"]
[353822304,1740078646103,-700.35,0.00014191,2]
[353822305,1740078646113,-588.98,0.00014191,2]
[353822306,1740078646123,-638.61968683,0.00014191,2]
[353822307,1740078646133,-500.0,0.00014191,2]
[353822308,1740078646143,-500.0,0.00014191,2]
[353822309,1740078646153,-500.0,0.00014191,2]
[353822310,1740078646163,-8914.89,0.00014191,2]
[353822311,1740078646172,-553.18,0.00014191,2]
[353822312,1740078646182,-500.0,0.00014191,2]
[353822313,1740078646192,-500.0,0.00014191,2]
[353822314,1740078646201,-500.0,0.00014191,2]
[353822315,1740078646211,-371.04980612,0.00014191,2]
[353822316,1740078646220,-3285.28,0.00014191,2]
[353822317,1740078646230,-500.0,0.00014191,2]
[353822318,1740078646240,-314.09159356,0.00014227,2]
[353822319,1740078646250,-493.89,0.00014273,2]
[353822320,1740078646259,-500.0,0.00014273,2]
[353822321,1740078646269,-404.5563,0.00014273,2]
[353822322,1740078646279,-500.0,0.00014273,2]
[353822323,1740078646288,-1155.71,0.00014273,2]
[353822324,1740078646381,-404.52,0.00014273,2]
[353822325,1740078646401,-531.14,0.00014273,2]
[353822326,1740078646411,-692.19,0.00014273,2]
[353822327,1740078646421,-500.0,0.00014273,2]
[353822330,1740078646431,-573.15,0.00014273,2]
[353822331,1740078646443,-500.0,0.00014273,2]
[353822332,1740078646460,-896.16,0.00014273,2]
[353822333,1740078646470,-500.0,0.00014273,2]
[353822334,1740078646480,-554.83,0.00014273,2]
[353822335,1740078646490,-500.0,0.00014273,2]
[353822336,1740078646500,-535.76,0.00014273,2]
[353822337,1740078646509,-594.4,0.00014273,2]
[353822338,1740078646519,-500.0,0.00014273,2]
[353822339,1740078646530,-1055.0,0.00014273,2]
[353822340,1740078646539,-500.0,0.00014273,2]
[353822341,1740078646550,-811.86,0.00014273,2]
[353822342,1740078646559,-500.0,0.00014273,2]
[353822343,1740078646570,-500.0,0.00014273,2]
[353822344,1740078646580,-500.0,0.00014273,2]
[353822346,1740078646590,-704.69,0.00014273,2]
[353822347,1740078646600,-500.0,0.00014273,2]
[353822348,1740078646609,-500.0,0.00014273,2]
[353822349,1740078646619,-609.0,0.00014273,2]
[353822350,1740078646628,-500.0,0.00014273,2]
[353822351,1740078646638,-585.93,0.00014273,2]
[353822352,1740078646648,-500.0,0.00014273,2]
[353822353,1740078646658,-500.0,0.00014273,2]
[353822354,1740078646668,-528.15,0.00014273,2]
[353822355,1740078646678,-500.0,0.00014273,2]
[353822356,1740078646687,-500.0,0.00014273,2]
[353822357,1740078646697,-500.0,0.00014273,2]
[353822358,1740078646707,-15414.88,0.00014273,2]
[353822359,1740078646716,-500.0,0.00014273,2]
[353822360,1740078646725,-732.37,0.00014273,2]
[353822361,1740078646735,-1736.85,0.00014273,2]
[353822362,1740078646745,-909.06,0.00014273,2]
[353822363,1740078646754,-666.3,0.00014273,2]
[353822364,1740078646765,-1333.08,0.00014273,2]
[353822365,1740078646774,-1099.26,0.00014273,2]
[353822366,1740078646783,-513.05,0.00014273,2]
[353822368,1740078646793,-38588.06,0.00014273,2]
[353822370,1740078646802,-500.0,0.00014273,2]
[353822372,1740078646812,-483.0699101,0.00014273,2]
[353822373,1740078646822,-500.0,0.00014273,2]
[353822374,1740078646831,-870.86,0.00014273,2]
[353822375,1740078646841,-2235.7,0.00014273,2]
[353822376,1740078646851,-1087.36,0.00014273,2]
[353822377,1740078646862,-1121.24,0.00014273,2]
[353822378,1740078646872,-500.0,0.00014273,2]
[353822379,1740078646882,-1307.05,0.00014273,2]
[353822380,1740078646892,-2835.69,0.00014273,2]
[353822381,1740078646901,-6311.81,0.00014273,2]
[353822382,1740078646911,-513.85,0.00014273,2]
[353822383,1740078646920,-500.0,0.00014273,2]
[353822384,1740078646930,-609.45,0.00014273,2]
[353822385,1740078646940,-640.81,0.00014273,2]
[353822386,1740078646949,-500.0,0.00014273,2]
[353822387,1740078646959,-991.77,0.00014273,2]
[353822388,1740078646968,-558.18,0.00014273,2]
[353822389,1740078646977,-3987.56,0.00014273,2]
[353822390,1740078646986,-500.0,0.00014273,2]
[353822391,1740078646996,-151.0,0.00014273,2]
[353822392,1740078647006,-500.0,0.00014273,2]
[353822393,1740078647023,-612.47,0.00014273,2]
[353822394,1740078647033,-2294.61,0.00014273,2]
[353822395,1740078647043,-500.0,0.00014273,2]
[353822396,1740078647053,-3680.82,0.00014273,2]
[353822397,1740078647063,-500.0,0.00014273,2]
[353822398,1740078647074,-1778.89,0.00014273,2]
[353822399,1740078647083,-500.0,0.00014273,2]
[353822400,1740078647093,-739.21,0.00014273,2]
[353822401,1740078647104,-535.76,0.00014273,2]
[353822402,1740078647114,-500.0,0.00014273,2]
[353822403,1740078647124,-1302.88,0.00014273,2]
[353822404,1740078647134,-1697.47,0.00014273,2]
[353822405,1740078647144,-2195.87,0.00014273,2]
[353822406,1740078647154,-500.0,0.00014273,2]
[353822407,1740078647164,-500.0,0.00014273,2]
[353822408,1740078647175,-1811.96,0.00014273,2]
[353822409,1740078647185,-500.0,0.00014273,2]
[353822410,1740078647196,-1816.13,0.00014273,2]
[353822411,1740078647207,-15658.72,0.00014273,2]
[353822412,1740078647217,-736.61,0.00014273,2]
[353822413,1740078647226,-5019.09,0.00014273,2]
[353822414,1740078647236,-500.0,0.00014273,2]
[353822415,1740078647246,-500.0,0.00014273,2]
[353822416,1740078647256,-1321.35,0.00014273,2]
[353822417,1740078647266,-1876.79,0.00014273,2]
[353822418,1740078647276,-534.57,0.00014273,2]
[353822419,1740078647286,-700.35,0.00014273,2]
[353822420,1740078647296,-588.98,0.00014273,2]
[353822421,1740078647306,-500.0,0.00014273,2]
[353822422,1740078647317,-500.0,0.00014273,2]
[353822423,1740078647326,-8914.89,0.00014273,2]
[353822424,1740078647336,-553.18,0.00014273,2]
[353822425,1740078647346,-496.55983966,0.00014273,2]
[353822426,1740078647355,-500.0,0.00014273,2]
[353822427,1740078647364,-500.0,0.00014273,2]
[353822428,1740078647378,-3285.28,0.00014273,2]
[353822429,1740078647387,-500.0,0.00014273,2]
[353822430,1740078647396,-2443.33,0.000143,2]
[353822431,1740078647406,-1201.38760899,0.000143,2]
[353822432,1740078647416,-399.56140855,0.000143,2]
[353822433,1740078647426,-399.56140855,0.000143,2]
[353822434,1740078647436,-399.56140855,0.000143,2]
[353822435,1740078647447,-399.56140855,0.000143,2]
[353822436,1740078647458,-399.56140855,0.000143,2]
[353822437,1740078647467,-399.56140855,0.000143,2]
[353822438,1740078647478,-399.56140855,0.000143,2]
[353822439,1740078647488,-399.56140855,0.000143,2]
[353822440,1740078647497,-399.56140855,0.000143,2]
[353822441,1740078647507,-399.56140855,0.000143,2]
[353822442,1740078647517,-399.56140855,0.000143,2]
[353822443,1740078647529,-399.56140855,0.000143,2]
[353822444,1740078647538,-399.56140855,0.000143,2]
[353822445,1740078647548,-399.56140855,0.000143,2]
[353822446,1740078647558,-399.56140855,0.000143,2]
[353822447,1740078647568,-399.56140855,0.000143,2]
[353822448,1740078647577,-399.56140855,0.000143,2]
[353822449,1740078647586,-399.56140855,0.000143,2]
[353822450,1740078647595,-399.56140855,0.000143,2]
[353822451,1740078647605,-399.56,0.000143,2]
[353822452,1740078647615,-500.0,0.00014356,2]
[353822453,1740078647624,-500.0,0.00014356,2]
[353822454,1740078647634,-1155.71,0.00014356,2]
[353822455,1740078647643,-531.14,0.00014356,2]
[353822456,1740078647652,-692.19,0.00014356,2]
[353822457,1740078647662,-500.0,0.00014356,2]
[353822458,1740078647672,-573.15,0.00014356,2]
[353822459,1740078647681,-500.0,0.00014356,2]
[353822460,1740078647691,-896.16,0.00014356,2]
[353822461,1740078647700,-500.0,0.00014356,2]
[353822462,1740078647710,-554.83,0.00014356,2]
[353822463,1740078647720,-500.0,0.00014356,2]
[353822464,1740078647729,-535.76,0.00014356,2]
[353822465,1740078647738,-594.4,0.00014356,2]
[353822466,1740078647748,-500.0,0.00014356,2]
[353822467,1740078647757,-1055.0,0.00014356,2]
[353822468,1740078647767,-215.98,0.00014356,2]
[353822469,1740078647776,-811.86,0.00014356,2]
[353822470,1740078647786,-500.0,0.00014356,2]
[353822471,1740078647795,-252.44183892,0.00014356,2]
[353822472,1740078647805,-500.0,0.00014356,2]
[353822473,1740078647814,-704.69,0.00014356,2]
[353822474,1740078647824,-500.0,0.00014356,2]
[353822475,1740078647834,-500.0,0.00014356,2]
[353822476,1740078647843,-609.0,0.00014356,2]
[353822477,1740078647852,-500.0,0.00014356,2]
[353822478,1740078647861,-585.93,0.00014356,2]
[353822479,1740078647871,-500.0,0.00014356,2]
[353822480,1740078647880,-500.0,0.00014356,2]
[353822481,1740078647890,-528.15,0.00014356,2]
[353822482,1740078647902,-500.0,0.00014356,2]
[353822483,1740078647911,-500.0,0.00014356,2]
[353822484,1740078647921,-500.0,0.00014356,2]
[353822485,1740078647930,-15414.88,0.00014356,2]
[353822486,1740078647939,-500.0,0.00014356,2]
[353822487,1740078647949,-732.37,0.00014356,2]
[353822488,1740078647959,-1736.85,0.00014356,2]
[353822489,1740078647968,-151.0,0.00014356,2]
[353822490,1740078647978,-151.0,0.00014356,2]
[353822491,1740078647988,-909.06,0.00014356,2]
[353822492,1740078647997,-666.3,0.00014356,2]
[353822493,1740078648007,-1099.26,0.00014356,2]
[353822494,1740078648016,-1333.08,0.00014356,2]
[353822495,1740078648026,-513.05,0.00014356,2]
[353822496,1740078648039,-38588.06,0.00014356,2]
[353822497,1740078648049,-500.0,0.00014356,2]
[353822498,1740078648059,-482.0,0.00014356,2]
[353822499,1740078648070,-500.0,0.00014356,2]
[353822500,1740078648080,-870.86,0.00014356,2]
[353822501,1740078648089,-482.0,0.00014356,2]
[353822502,1740078648100,-2235.7,0.00014356,2]
[353822503,1740078648111,-1087.36,0.00014356,2]
[353822504,1740078648121,-151.0,0.00014356,2]
[353822505,1740078648131,-1121.24,0.00014356,2]
[353822506,1740078648140,-500.0,0.00014356,2]
[353822507,1740078648150,-1307.05,0.00014356,2]
[353822508,1740078648159,-2835.69,0.00014356,2]
[353822509,1740078648169,-6311.81,0.00014356,2]
[353822510,1740078648179,-513.85,0.00014356,2]
[353822511,1740078648189,-500.0,0.00014356,2]
[353822512,1740078648199,-609.45,0.00014356,2]
[353822513,1740078648209,-640.81,0.00014356,2]
[353822514,1740078648218,-500.0,0.00014356,2]
[353822515,1740078648228,-558.18,0.00014356,2]
[353822516,1740078648238,-991.77,0.00014356,2]
[353822517,1740078648247,-3987.56,0.00014356,2]
[353822518,1740078648256,-500.0,0.00014356,2]
[353822519,1740078648265,-151.0,0.00014356,2]
[353822520,1740078648275,-151.0,0.00014356,2]
[353822521,1740078648285,-500.0,0.00014356,2]
[353822522,1740078648295,-612.47,0.00014356,2]
[353822523,1740078648304,-2294.61,0.00014356,2]
[353822524,1740078648314,-500.0,0.00014356,2]
[353822525,1740078648324,-3680.82,0.00014356,2]
[353822526,1740078648333,-153.85974818,0.00014356,2]
[353822527,1740078648343,-1778.89,0.00014356,2]
[353822528,1740078648352,-500.0,0.00014356,2]
[353822529,1740078648362,-739.21,0.00014356,2]
[353822530,1740078648371,-535.76,0.00014356,2]
[353822531,1740078648382,-500.0,0.00014356,2]
[353822532,1740078648392,-1302.88,0.00014356,2]
[353822533,1740078648402,-1697.47,0.00014356,2]
[353822534,1740078648412,-2195.87,0.00014356,2]
[353822535,1740078648422,-500.0,0.00014356,2]
[353822536,1740078648431,-500.0,0.00014356,2]
[353822537,1740078648443,-1811.96,0.00014356,2]
[353822538,1740078648453,-204.64698254,0.00014356,2]
[353822539,1740078648463,-1816.13,0.00014356,2]
[353822540,1740078648560,-15658.72,0.00014356,2]
[353822541,1740078648571,-736.61,0.00014356,2]
[353822542,1740078648580,-5019.09,0.00014356,2]
[353822543,1740078648589,-500.0,0.00014356,2]
[353822544,1740078648598,-500.0,0.00014356,2]
[353822545,1740078648608,-1321.35,0.00014356,2]
[353822546,1740078648617,-1876.79,0.00014356,2]
[353822547,1740078648627,-151.0,0.00014356,2]
[353822548,1740078648636,-534.57,0.00014356,2]
[353822549,1740078648645,-700.35,0.00014356,2]
[353822550,1740078648655,-588.98,0.00014356,2]
[353822551,1740078648664,-500.0,0.00014356,2]
[353822552,1740078648674,-500.0,0.00014356,2]
[353822553,1740078648683,-8914.89,0.00014356,2]
[353822554,1740078648693,-553.18,0.00014356,2]
[353822555,1740078648703,-500.0,0.00014356,2]
[353822556,1740078648712,-500.0,0.00014356,2]
[353822557,1740078648721,-3285.28,0.00014356,2]
[353822558,1740078648731,-500.0,0.00014356,2]
[353822559,1740078648740,-1688.67093888,0.00014364,2]
[353822560,1740078648749,-500.0,0.00014373,2]
[353822561,1740078648758,-500.0,0.00014373,2]
[353822562,1740078648768,-500.0,0.00014373,2]
[353822563,1740078648777,-3000.0,0.000144,2]
[353822564,1740078648787,-719858.3563269,0.000144,2]
[353822565,1740078649068,-500.0,0.00013698,2]
[353822566,1740078649078,-500.0,0.00013698,2]
[353822567,1740078649089,-500.0,0.0001378,2]
[353822568,1740078649099,-500.0,0.0001378,2]
[353822569,1740078649109,-500.0,0.00013863,2]
[353822570,1740078649119,-500.0,0.00013945,2]
[353822571,1740078649129,-8383.42036759,0.00013974,2]
[353822572,1740078649138,-736341.50960175,0.000144,2]
[353822573,1740078649155,-500.0,0.00013698,2]
[353822574,1740078649165,-316595.01069107,0.000144,2]
[353822575,1740078649175,-151.0,0.000144,2]
[353822576,1740078649184,-259.839137,0.000144,2]
[353822577,1740078649194,-482.0,0.000144,2]
[353822578,1740078649205,-482.0,0.000144,2]
[353822579,1740078649215,-151.0,0.000144,2]
[353822580,1740078649224,-151.0,0.000144,2]
[353822581,1740078649233,-151.0,0.000144,2]
[353822582,1740078649243,-151.0,0.000144,2]
[353822583,1740078649252,-230.81367683,0.00014437,2]
[353822584,1740078649261,-150.24,0.00014438,2]
[353822585,1740078649270,-500.0,0.00014438,2]
[353822586,1740078649280,-500.0,0.00014438,2]
[353822587,1740078649290,-1155.71,0.00014438,2]
[353822588,1740078649300,-531.14,0.00014438,2]
[353822589,1740078649309,-692.19,0.00014438,2]
[353822590,1740078649319,-500.0,0.00014438,2]
[353822591,1740078649328,-573.15,0.00014438,2]
[353822592,1740078649337,-500.0,0.00014438,2]
[353822593,1740078649347,-896.16,0.00014438,2]
[353822594,1740078649356,-573.57228299,0.00014438,2]
[353822595,1740078649366,-554.83,0.00014438,2]
[353822596,1740078649376,-500.0,0.00014438,2]
[353822597,1740078649385,-535.76,0.00014438,2]
[353822598,1740078649394,-594.4,0.00014438,2]
[353822599,1740078649404,-500.0,0.00014438,2]
[353822600,1740078649413,-1055.0,0.00014438,2]
[353822601,1740078649422,-811.86,0.00014438,2]
[353822602,1740078649431,-500.0,0.00014438,2]
[353822603,1740078649443,-500.0,0.00014438,2]
[353822604,1740078649454,-704.69,0.00014438,2]
[353822605,1740078649463,-500.0,0.00014438,2]
[353822606,1740078649474,-500.0,0.00014438,2]
[353822607,1740078649485,-609.0,0.00014438,2]
[353822608,1740078649494,-500.0,0.00014438,2]
[353822609,1740078649503,-585.93,0.00014438,2]
[353822610,1740078649513,-500.0,0.00014438,2]
[353822611,1740078649524,-169.54835525,0.00014438,2]
[353822612,1740078649533,-528.15,0.00014438,2]
[353822613,1740078649543,-500.0,0.00014438,2]
[353822614,1740078649552,-500.0,0.00014438,2]
[353822615,1740078649562,-500.0,0.00014438,2]
[353822616,1740078649572,-15414.88,0.00014438,2]
[353822617,1740078649581,-500.0,0.00014438,2]
[353822618,1740078649590,-732.37,0.00014438,2]
[353822619,1740078649599,-909.06,0.00014438,2]
[353822620,1740078649608,-666.3,0.00014438,2]
[353822621,1740078649618,-1099.26,0.00014438,2]
[353822622,1740078649627,-1333.08,0.00014438,2]
[353822623,1740078649636,-513.05,0.00014438,2]
[353822624,1740078649645,-38588.06,0.00014438,2]
[353822625,1740078649654,-500.0,0.00014438,2]
[353822626,1740078649663,-870.86,0.00014438,2]
[353822627,1740078649673,-2235.7,0.00014438,2]
[353822628,1740078649682,-1087.36,0.00014438,2]
[353822629,1740078649691,-1121.24,0.00014438,2]
[353822630,1740078649700,-500.0,0.00014438,2]
[353822631,1740078649710,-1307.05,0.00014438,2]
[353822632,1740078649719,-2835.69,0.00014438,2]
[353822633,1740078649728,-6311.81,0.00014438,2]
[353822634,1740078649737,-513.85,0.00014438,2]
[353822635,1740078649746,-500.0,0.00014438,2]
[353822636,1740078649755,-609.45,0.00014438,2]
[353822637,1740078649764,-640.81,0.00014438,2]
[353822638,1740078649773,-500.0,0.00014438,2]
[353822639,1740078649783,-558.18,0.00014438,2]
[353822640,1740078649792,-991.77,0.00014438,2]
[353822641,1740078649801,-3987.56,0.00014438,2]
[353822642,1740078649811,-500.0,0.00014438,2]
[353822643,1740078649820,-500.0,0.00014438,2]
[353822644,1740078649829,-612.47,0.00014438,2]
[353822645,1740078649839,-2294.61,0.00014438,2]
[353822646,1740078649848,-500.0,0.00014438,2]
[353822647,1740078649857,-500.0,0.00014438,2]
[353822648,1740078649867,-500.0,0.00014438,2]
[353822649,1740078649877,-150.24,0.00014438,2]
[353822650,1740078649886,-500.0,0.00014438,2]
[353822651,1740078649896,-150.24,0.00014438,2]
[353822652,1740078649905,-150.3,0.00014438,2]
[353822653,1740078649915,-3680.82,0.00014438,2]
[353822654,1740078649924,-1778.89,0.00014438,2]
[353822655,1740078649933,-500.0,0.00014438,2]
[353822656,1740078649943,-776.0,0.00014438,2]
[353822657,1740078649952,-739.21,0.00014438,2]
[353822658,1740078649962,-500.0,0.00014438,2]
[353822659,1740078649971,-150.24,0.00014438,2]
[353822660,1740078649981,-501.0,0.00014438,2]
[353822661,1740078649990,-535.76,0.00014438,2]
[353822662,1740078650000,-500.0,0.00014438,2]
[353822663,1740078650010,-150.24,0.00014438,2]
[353822664,1740078650020,-150.24,0.00014438,2]
[353822665,1740078650029,-1302.88,0.00014438,2]
[353822666,1740078650038,-150.24,0.00014438,2]
[353822667,1740078650047,-1697.47,0.00014438,2]
[353822668,1740078650057,-2195.87,0.00014438,2]
[353822669,1740078650066,-500.0,0.00014438,2]
[353822670,1740078650076,-500.0,0.00014438,2]
[353822671,1740078650085,-1811.96,0.00014438,2]
[353822672,1740078650095,-1816.13,0.00014438,2]
[353822673,1740078650105,-15658.72,0.00014438,2]
[353822674,1740078650115,-736.61,0.00014438,2]
[353822675,1740078650125,-5019.09,0.00014438,2]
[353822676,1740078650134,-500.0,0.00014438,2]
[353822677,1740078650144,-1321.35,0.00014438,2]
[353822678,1740078650154,-1876.79,0.00014438,2]
[353822679,1740078650163,-534.57,0.00014438,2]
[353822680,1740078650173,-700.35,0.00014438,2]
[353822681,1740078650183,-588.98,0.00014438,2]
[353822682,1740078650194,-500.0,0.00014438,2]
[353822683,1740078650203,-500.0,0.00014438,2]
[353822684,1740078650213,-8914.89,0.00014438,2]
[353822685,1740078650223,-553.18,0.00014438,2]
[353822686,1740078650233,-500.0,0.00014438,2]
[353822687,1740078650323,-164.47214568,0.00014438,2]
[353822688,1740078650345,-205.00660045,0.00014438,2]
[353822689,1740078650355,-150.24,0.00014438,2]
[353822690,1740078650365,-500.0,0.00014438,2]
[353822691,1740078650374,-500.0,0.00014438,2]
[353822692,1740078650384,-166.96834915,0.00014438,2]
[353822693,1740078650393,-150.24,0.00014438,2]
[353822694,1740078650403,-150.24,0.00014438,2]
[353822695,1740078650412,-150.3,0.00014438,2]
[353822696,1740078650421,-150.24,0.00014438,2]
[353822697,1740078650430,-3285.28,0.00014438,2]
[353822698,1740078650440,-500.0,0.00014438,2]
[353822699,1740078650454,-700.0,0.00014438,2]
[353822700,1740078650464,-794418.62700388,0.000145,2]
[353822701,1740078650473,-103386.10052625,0.000145,2]
[353822702,1740078650484,-7167.0,0.000145,2]
[353822703,1740078650493,-2051.74844998,0.000145,2]
[353822704,1740078650502,-500.0,0.000145,2]
[353822705,1740078650512,-6370.91704921,0.000145,2]
[353822706,1740078650523,-151.0,0.000145,2]
[353822707,1740078650532,-482.0,0.000145,2]
[353822708,1740078650542,-482.0,0.000145,2]
[353822709,1740078650551,-151.0,0.000145,2]
[353822710,1740078650561,-151.0,0.000145,2]
[353822711,1740078650570,-151.0,0.000145,2]
[353822712,1740078650580,-500.0,0.0001452,2]
[353822713,1740078650589,-500.0,0.0001452,2]
[353822714,1740078650599,-500.0,0.0001452,2]
[353822715,1740078650608,-1155.71,0.0001452,2]
[353822716,1740078650619,-531.14,0.0001452,2]
[353822717,1740078650628,-692.19,0.0001452,2]
[353822718,1740078650638,-500.0,0.0001452,2]
[353822719,1740078650648,-573.15,0.0001452,2]
[353822720,1740078650658,-500.0,0.0001452,2]
[353822721,1740078650667,-896.16,0.0001452,2]
[353822722,1740078650678,-554.83,0.0001452,2]
[353822723,1740078650688,-500.0,0.0001452,2]
[353822724,1740078650697,-535.76,0.0001452,2]
[353822725,1740078650707,-594.4,0.0001452,2]
[353822726,1740078650716,-500.0,0.0001452,2]
[353822727,1740078650726,-1055.0,0.0001452,2]
[353822728,1740078650739,-811.86,0.0001452,2]
[353822729,1740078650751,-500.0,0.0001452,2]
[353822730,1740078650767,-500.0,0.0001452,2]
[353822731,1740078650777,-704.69,0.0001452,2]
[353822732,1740078650788,-221.66086724,0.0001452,2]
[353822733,1740078650798,-500.0,0.0001452,2]
[353822734,1740078650808,-609.0,0.0001452,2]
[353822735,1740078650818,-500.0,0.0001452,2]
[353822736,1740078650829,-585.93,0.0001452,2]
[353822737,1740078650839,-528.15,0.0001452,2]
[353822738,1740078650848,-500.0,0.0001452,2]
[353822739,1740078650858,-500.0,0.0001452,2]
[353822740,1740078650868,-15414.88,0.0001452,2]
[353822741,1740078650878,-500.0,0.0001452,2]
[353822742,1740078650889,-732.37,0.0001452,2]
[353822743,1740078650899,-909.06,0.0001452,2]
[353822744,1740078650909,-666.3,0.0001452,2]
[353822745,1740078650919,-1099.26,0.0001452,2]
[353822746,1740078650929,-1333.08,0.0001452,2]
[353822747,1740078650939,-513.05,0.0001452,2]
[353822748,1740078650949,-38588.06,0.0001452,2]
[353822749,1740078650960,-421.00198019,0.0001452,2]
[353822750,1740078650969,-870.86,0.0001452,2]
[353822751,1740078650979,-2235.7,0.0001452,2]
[353822752,1740078650990,-1087.36,0.0001452,2]
[353822753,1740078651000,-1121.24,0.0001452,2]
[353822754,1740078651011,-500.0,0.0001452,2]
[353822755,1740078651021,-1307.05,0.0001452,2]
[353822756,1740078651031,-2835.69,0.0001452,2]
[353822757,1740078651042,-6311.81,0.0001452,2]
[353822758,1740078651053,-513.85,0.0001452,2]
[353822759,1740078651064,-500.0,0.0001452,2]
[353822760,1740078651075,-609.45,0.0001452,2]
[353822761,1740078651084,-640.81,0.0001452,2]
[353822762,1740078651094,-500.0,0.0001452,2]
[353822763,1740078651104,-558.18,0.0001452,2]
[353822764,1740078651114,-991.77,0.0001452,2]
[353822765,1740078651125,-3987.56,0.0001452,2]
[353822766,1740078651135,-500.0,0.0001452,2]
[353822767,1740078651145,-500.0,0.0001452,2]
[353822768,1740078651156,-612.47,0.0001452,2]
[353822769,1740078651167,-2294.61,0.0001452,2]
[353822770,1740078651179,-268.41776899,0.0001452,2]
[353822771,1740078651189,-3680.82,0.0001452,2]
[353822772,1740078651199,-1778.89,0.0001452,2]
[353822773,1740078651210,-500.0,0.0001452,2]
[353822774,1740078651220,-739.21,0.0001452,2]
[353822775,1740078651229,-535.76,0.0001452,2]
[353822776,1740078651241,-500.0,0.0001452,2]
[353822777,1740078651261,-1302.88,0.0001452,2]
[353822778,1740078651277,-1697.47,0.0001452,2]
[353822779,1740078651289,-2195.87,0.0001452,2]
[353822780,1740078651303,-500.0,0.0001452,2]
[353822781,1740078651318,-500.0,0.0001452,2]
[353822782,1740078651334,-1811.96,0.0001452,2]
[353822783,1740078651348,-1816.13,0.0001452,2]
[353822784,1740078651364,-15658.72,0.0001452,2]
[353822785,1740078651379,-736.61,0.0001452,2]
[353822786,1740078651392,-5019.09,0.0001452,2]
[353822787,1740078651406,-500.0,0.0001452,2]
[353822788,1740078651419,-1321.35,0.0001452,2]
[353822789,1740078651434,-1876.79,0.0001452,2]
[353822790,1740078651449,-534.57,0.0001452,2]
[353822791,1740078651461,-700.35,0.0001452,2]
[353822792,1740078651474,-588.98,0.0001452,2]
[353822793,1740078651487,-500.0,0.0001452,2]
[353822794,1740078651501,-500.0,0.0001452,2]
[353822795,1740078651516,-8914.89,0.0001452,2]
[353822796,1740078651533,-553.18,0.0001452,2]
[353822797,1740078651547,-500.0,0.0001452,2]
[353822798,1740078651563,-500.0,0.0001452,2]
[353822799,1740078651574,-3285.28,0.0001452,2]
[353822800,1740078651585,-500.0,0.0001452,2]
[353822801,1740078651599,-700.0,0.0001458,2]
[353822802,1740078651615,-304.0,0.0001458,2]
[353822803,1740078651629,-420.0,0.00014584,2]
[353822804,1740078651640,-1003.48,0.000146,10]
[353822805,1740078651653,-500.0,0.00014602,2]
[353822806,1740078651667,-500.0,0.00014602,2]
[353822807,1740078651678,-1155.71,0.00014602,2]
[353822808,1740078651689,-531.14,0.00014602,2]
[353822809,1740078651702,-692.19,0.00014602,2]